{"text_format":"1","workbook":"xlsx","n_sheets":2,"sheets":["Adressen","Rg_Eingang_Tag"],"not_rendered":{"charts":0,"images":0,"macros":1,"external_links":1,"defined_names":1,"comments":0,"pivot_tables":0},"unopened":[],"bounds":{"document_bytes":16777216,"sheet_cells":100000,"rows_first":2000,"rows_last":500,"rows_between":2000,"halvings":0,"cell_chars":16384,"cell_head_chars":4096},"cells_cut":0,"cells_raw":0,"read":"whole","date_system":"1900"}

{"sheet":"Adressen","index":0,"n_rows":368,"n_cols":16,"rows_kept":368,"cut":false,"hidden":false,"merged":[]}
[]
[null,null,null,null,null,null,null,null,null,null,null,null,null,"Datum",null,"Firma"]
[null,null,null,null,null,null,null,null,null,null,null,null,null,"2026-01-05",null,"MG"]
[null,null,null,null,null,null,null,null,null,null,null,null,null,"2026-01-05",null,"MG"]
[null,null,null,null,null,null,null,null,null,null,null,null,null,"2026-01-05",null,"MG"]
[null,null,null,null,null,null,null,null,null,null,null,null,null,"2026-01-06",null,"MG"]
[null,null,null,null,null,null,null,null,null,null,null,null,null,"2026-01-06",null,"MG"]
[null,null,null,null,null,null,null,null,null,null,null,null,null,"2026-01-06",null,"MG"]
[null,null,null,null,null,null,null,null,null,null,null,null,null,"2026-01-06",null,"MG"]
[null,null,null,null,null,null,null,null,null,null,null,null,null,"2026-01-06",null,"MG"]
[null,null,null,null,null,null,null,null,null,null,null,null,null,"2026-01-06",null,"MG"]
[null,null,null,null,null,null,null,null,null,null,null,null,null,"2026-01-06",null,"MG"]
[null,null,null,null,null,null,null,null,null,null,null,null,null,"2026-01-06",null,"MG"]
[null,null,null,null,null,null,null,null,null,null,null,null,null,"2026-01-06",null,"MG"]
[null,null,null,null,null,null,null,null,null,null,null,null,null,"2026-01-06",null,"MG"]
[null,null,null,null,null,null,null,null,null,null,null,null,null,"2026-01-06",null,"MG"]
[null,null,null,null,null,null,null,null,null,null,null,null,null,"2026-01-06",null,"MG"]
[null,null,null,null,null,null,null,null,null,null,null,null,null,"2026-01-06",null,"MG"]
[null,null,null,null,null,null,null,null,null,null,null,null,null,"2026-01-06",null,"MG"]
[null,null,null,null,null,null,null,null,null,null,null,null,null,"2026-01-06",null,"MG"]
[null,null,null,null,null,null,null,null,null,null,null,null,null,"2026-01-06",null,"MG"]
[null,null,null,null,null,null,null,null,null,null,null,null,null,"2026-01-06",null,"Slo"]
[null,null,null,null,null,null,null,null,null,null,null,null,null,"2026-01-06",null,"Slo"]
[null,null,null,null,null,null,null,null,null,null,null,null,null,"2026-01-07",null,"MG"]
[null,null,null,null,null,null,null,null,null,null,null,null,null,"2026-01-07",null,"MG"]
[null,null,null,null,null,null,null,null,null,null,null,null,null,"2026-01-07",null,"MG"]
[null,null,null,null,null,null,null,null,null,null,null,null,null,"2026-01-07",null,"MG"]
[null,null,null,null,null,null,null,null,null,null,null,null,null,"2026-01-07",null,"MG"]
[null,null,null,null,null,null,null,null,null,null,null,null,null,"2026-01-07",null,"MG"]
[null,null,null,null,null,null,null,null,null,null,null,null,null,"2026-01-07",null,"MG"]
[null,null,null,null,null,null,null,null,null,null,null,null,null,"2026-01-07",null,"MG"]
[null,null,null,null,null,null,null,null,null,null,null,null,null,"2026-01-07",null,"MG"]
[null,null,null,null,null,null,null,null,null,null,null,null,null,"2026-01-07",null,"MG"]
[null,null,null,null,null,null,null,null,null,null,null,null,null,"2026-01-07",null,"MG"]
[null,null,null,null,null,null,null,null,null,null,null,null,null,"2026-01-07",null,"MG"]
[null,null,null,null,null,null,null,null,null,null,null,null,null,"2026-01-07",null,"MG"]
[null,null,null,null,null,null,null,null,null,null,null,null,null,"2026-01-07",null,"MG"]
[null,null,null,null,null,null,null,null,null,null,null,null,null,"2026-01-07",null,"MG"]
[null,null,null,null,null,null,null,null,null,null,null,null,null,"2026-01-08",null,"MG"]
[null,null,null,null,null,null,null,null,null,null,null,null,null,"2026-01-08",null,"MG"]
[null,null,null,null,null,null,null,null,null,null,null,null,null,"2026-01-08",null,"MG"]
[null,null,null,null,null,null,null,null,null,null,null,null,null,"2026-01-08",null,"MG"]
[null,null,null,null,null,null,null,null,null,null,null,null,null,"2026-01-08",null,"MG"]
[null,null,null,null,null,null,null,null,null,null,null,null,null,"2026-01-08",null,"MG"]
[null,null,null,null,null,null,null,null,null,null,null,null,null,"2026-01-12",null,"MG"]
[null,null,null,null,null,null,null,null,null,null,null,null,null,"2026-01-12",null,"MG"]
[null,null,null,null,null,null,null,null,null,null,null,null,null,"2026-01-12",null,"MG"]
[null,null,null,null,null,null,null,null,null,null,null,null,null,"2026-01-12",null,"MG"]
[null,null,null,null,null,null,null,null,null,null,null,null,null,"2026-01-12",null,"MG"]
[null,null,null,null,null,null,null,null,null,null,null,null,null,"2026-01-13",null,"MG"]
[null,null,null,null,null,null,null,null,null,null,null,null,null,"2026-01-13",null,"MG"]
[null,null,null,null,null,null,null,null,null,null,null,null,null,"2026-01-13",null,"MG"]
[null,null,null,null,null,null,null,null,null,null,null,null,null,"2026-01-13",null,"MG"]
[null,null,null,null,null,null,null,null,null,null,null,null,null,"2026-01-13",null,"MG"]
[null,null,null,null,null,null,null,null,null,null,null,null,null,"2026-01-13",null,"MG"]
[null,null,null,null,null,null,null,null,null,null,null,null,null,"2026-01-13",null,"MG"]
[null,null,null,null,null,null,null,null,null,null,null,null,null,"2026-01-13",null,"MG"]
[null,null,null,null,null,null,null,null,null,null,null,null,null,"2026-01-13",null,"MG"]
[null,null,null,null,null,null,null,null,null,null,null,null,null,"2026-01-13",null,"MG"]
[null,null,null,null,null,null,null,null,null,null,null,null,null,"2026-01-13",null,"MG"]
[null,null,null,null,null,null,null,null,null,null,null,null,null,"2026-01-13",null,"MG"]
[null,null,null,null,null,null,null,null,null,null,null,null,null,"2026-01-13",null,"MG"]
[null,null,null,null,null,null,null,null,null,null,null,null,null,"2026-01-13",null,"MG"]
[null,null,null,null,null,null,null,null,null,null,null,null,null,"2026-01-13",null,"MG"]
[null,null,null,null,null,null,null,null,null,null,null,null,null,"2026-01-13",null,"MG"]
[null,null,null,null,null,null,null,null,null,null,null,null,null,"2026-01-13",null,"MG"]
[null,null,null,null,null,null,null,null,null,null,null,null,null,"2026-01-14",null,"MG"]
[null,null,null,null,null,null,null,null,null,null,null,null,null,"2026-01-14",null,"MG"]
[null,null,null,null,null,null,null,null,null,null,null,null,null,"2026-01-16",null,"MG"]
[null,null,null,null,null,null,null,null,null,null,null,null,null,"2026-01-16",null,"MG"]
[null,null,null,null,null,null,null,null,null,null,null,null,null,"2026-01-16",null,"MG"]
[null,null,null,null,null,null,null,null,null,null,null,null,null,"2026-01-16",null,"MG"]
[null,null,null,null,null,null,null,null,null,null,null,null,null,"2026-01-16",null,"MG"]
[null,null,null,null,null,null,null,null,null,null,null,null,null,"2026-01-16",null,"MG"]
[null,null,null,null,null,null,null,null,null,null,null,null,null,"2026-01-16",null,"MG"]
[null,null,null,null,null,null,null,null,null,null,null,null,null,"2026-01-19",null,"MG"]
[null,null,null,null,null,null,null,null,null,null,null,null,null,"2026-01-19",null,"MG"]
[null,null,null,null,null,null,null,null,null,null,null,null,null,"2026-01-19",null,"MG"]
[null,null,null,null,null,null,null,null,null,null,null,null,null,"2026-01-19",null,"MG"]
[null,null,null,null,null,null,null,null,null,null,null,null,null,"2026-01-20",null,"MG"]
[null,null,null,null,null,null,null,null,null,null,null,null,null,"2026-01-20",null,"MG"]
[null,null,null,null,null,null,null,null,null,null,null,null,null,"2026-01-20",null,"MG"]
[null,null,null,null,null,null,null,null,null,null,null,null,null,"2026-01-20",null,"MG"]
[null,null,null,null,null,null,null,null,null,null,null,null,null,"2026-01-20",null,"MG"]
[null,null,null,null,null,null,null,null,null,null,null,null,null,"2026-01-20",null,"MG"]
[null,null,null,null,null,null,null,null,null,null,null,null,null,"2026-01-20",null,"MG"]
[null,null,null,null,null,null,null,null,null,null,null,null,null,"2026-01-20",null,"MG"]
[null,null,null,null,null,null,null,null,null,null,null,null,null,"2026-01-21",null,"MG"]
[null,null,null,null,null,null,null,null,null,null,null,null,null,"2026-01-21",null,"MG"]
[null,null,null,null,null,null,null,null,null,null,null,null,null,"2026-01-21",null,"MG"]
[null,null,null,null,null,null,null,null,null,null,null,null,null,"2026-01-21",null,"MG"]
[null,null,null,null,null,null,null,null,null,null,null,null,null,"2026-01-21",null,"MG"]
[null,null,null,null,null,null,null,null,null,null,null,null,null,"2026-01-21",null,"MG"]
[null,null,null,null,null,null,null,null,null,null,null,null,null,"2026-01-21",null,"MG"]
[null,null,null,null,null,null,null,null,null,null,null,null,null,"2026-01-21",null,"MG"]
[null,null,null,null,null,null,null,null,null,null,null,null,null,"2026-01-21",null,"Slo"]
[null,null,null,null,null,null,null,null,null,null,null,null,null,"2026-01-21",null,"Slo"]
[null,null,null,null,null,null,null,null,null,null,null,null,null,"2026-01-21",null,"Slo"]
[null,null,null,null,null,null,null,null,null,null,null,null,null,"2026-01-21",null,"Slo"]
[null,null,null,null,null,null,null,null,null,null,null,null,null,"2026-01-21",null,"Slo"]
[null,null,null,null,null,null,null,null,null,null,null,null,null,"2026-01-22",null,"MG"]
[null,null,null,null,null,null,null,null,null,null,null,null,null,"2026-01-22",null,"MG"]
[null,null,null,null,null,null,null,null,null,null,null,null,null,"2026-01-22",null,"MG"]
[null,null,null,null,null,null,null,null,null,null,null,null,null,"2026-01-22",null,"MG"]
[null,null,null,null,null,null,null,null,null,null,null,null,null,"2026-01-22",null,"MG"]
[null,null,null,null,null,null,null,null,null,null,null,null,null,"2026-01-23",null,"MG"]
[null,null,null,null,null,null,null,null,null,null,null,null,null,"2026-01-23",null,"MG"]
[null,null,null,null,null,null,null,null,null,null,null,null,null,"2026-01-23",null,"MG"]
[null,null,null,null,null,null,null,null,null,null,null,null,null,"2026-01-23",null,"MG"]
[null,null,null,null,null,null,null,null,null,null,null,null,null,"2026-01-23",null,"MG"]
[null,null,null,null,null,null,null,null,null,null,null,null,null,"2026-01-23",null,"MG"]
[null,null,null,null,null,null,null,null,null,null,null,null,null,"2026-01-23",null,"MG"]
[null,null,null,null,null,null,null,null,null,null,null,null,null,"2026-01-23",null,"MG"]
[null,null,null,null,null,null,null,null,null,null,null,null,null,"2026-01-23",null,"MG"]
[null,null,null,null,null,null,null,null,null,null,null,null,null,"2026-01-23",null,"MG"]
[null,null,null,null,null,null,null,null,null,null,null,null,null,"2026-01-23",null,"MG"]
[null,null,null,null,null,null,null,null,null,null,null,null,null,"2026-01-23",null,"MG"]
[null,null,null,null,null,null,null,null,null,null,null,null,null,"2026-01-26",null,"MG"]
[null,null,null,null,null,null,null,null,null,null,null,null,null,"2026-01-26",null,"MG"]
[null,null,null,null,null,null,null,null,null,null,null,null,null,"2026-01-26",null,"MG"]
[null,null,null,null,null,null,null,null,null,null,null,null,null,"2026-01-27",null,"MG"]
[null,null,null,null,null,null,null,null,null,null,null,null,null,"2026-01-27",null,"MG"]
[null,null,null,null,null,null,null,null,null,null,null,null,null,"2026-01-27",null,"MG"]
[null,null,null,null,null,null,null,null,null,null,null,null,null,"2026-01-27",null,"MG"]
[null,null,null,null,null,null,null,null,null,null,null,null,null,"2026-01-27",null,"MG"]
[null,null,null,null,null,null,null,null,null,null,null,null,null,"2026-01-27",null,"MG"]
[null,null,null,null,null,null,null,null,null,null,null,null,null,"2026-01-28",null,"MG"]
[null,null,null,null,null,null,null,null,null,null,null,null,null,"2026-01-28",null,"MG"]
[null,null,null,null,null,null,null,null,null,null,null,null,null,"2026-01-28",null,"MG"]
[null,null,null,null,null,null,null,null,null,null,null,null,null,"2026-01-28",null,"MG"]
[null,null,null,null,null,null,null,null,null,null,null,null,null,"2026-01-28",null,"MG"]
[null,null,null,null,null,null,null,null,null,null,null,null,null,"2026-01-28",null,"MG"]
[null,null,null,null,null,null,null,null,null,null,null,null,null,"2026-01-28",null,"MG"]
[null,null,null,null,null,null,null,null,null,null,null,null,null,"2026-01-28",null,"MG"]
[null,null,null,null,null,null,null,null,null,null,null,null,null,"2026-01-28",null,"MG"]
[null,null,null,null,null,null,null,null,null,null,null,null,null,"2026-01-28",null,"Slo"]
[null,null,null,null,null,null,null,null,null,null,null,null,null,"2026-01-29",null,"MG"]
[null,null,null,null,null,null,null,null,null,null,null,null,null,"2026-01-29",null,"Slo"]
[null,null,null,null,null,null,null,null,null,null,null,null,null,"2026-01-30",null,"MG"]
[null,null,null,null,null,null,null,null,null,null,null,null,null,"2026-01-30",null,"Slo"]
[null,null,null,null,null,null,null,null,null,null,null,null,null,"2026-01-30",null,"Slo"]
[null,null,null,null,null,null,null,null,null,null,null,null,null,"2026-02-02",null,"MG"]
[null,null,null,null,null,null,null,null,null,null,null,null,null,"2026-02-02",null,"MG"]
[null,null,null,null,null,null,null,null,null,null,null,null,null,"2026-02-02",null,"MG"]
[null,null,null,null,null,null,null,null,null,null,null,null,null,"2026-02-02",null,"MG"]
[null,null,null,null,null,null,null,null,null,null,null,null,null,"2026-02-02",null,"MG"]
[null,null,null,null,null,null,null,null,null,null,null,null,null,"2026-02-02",null,"MG"]
[null,null,null,null,null,null,null,null,null,null,null,null,null,"2026-02-03",null,"MG"]
[null,null,null,null,null,null,null,null,null,null,null,null,null,"2026-02-03",null,"MG"]
[null,null,null,null,null,null,null,null,null,null,null,null,null,"2026-02-03",null,"MG"]
[null,null,null,null,null,null,null,null,null,null,null,null,null,"2026-02-03",null,"MG"]
[null,null,null,null,null,null,null,null,null,null,null,null,null,"2026-02-03",null,"MG"]
[null,null,null,null,null,null,null,null,null,null,null,null,null,"2026-02-03",null,"Slo"]
[null,null,null,null,null,null,null,null,null,null,null,null,null,"2026-02-04",null,"MG"]
[null,null,null,null,null,null,null,null,null,null,null,null,null,"2026-02-04",null,"MG"]
[null,null,null,null,null,null,null,null,null,null,null,null,null,"2026-02-04",null,"MG"]
[null,null,null,null,null,null,null,null,null,null,null,null,null,"2026-02-04",null,"MG"]
[null,null,null,null,null,null,null,null,null,null,null,null,null,"2026-02-04",null,"MG"]
[null,null,null,null,null,null,null,null,null,null,null,null,null,"2026-02-04",null,"MG"]
[null,null,null,null,null,null,null,null,null,null,null,null,null,"2026-02-04",null,"MG"]
[null,null,null,null,null,null,null,null,null,null,null,null,null,"2026-02-04",null,"MG"]
[null,null,null,null,null,null,null,null,null,null,null,null,null,"2026-02-04",null,"MG"]
[null,null,null,null,null,null,null,null,null,null,null,null,null,"2026-02-05",null,"MG"]
[null,null,null,null,null,null,null,null,null,null,null,null,null,"2026-02-05",null,"MG"]
[null,null,null,null,null,null,null,null,null,null,null,null,null,"2026-02-06",null,"MG"]
[null,null,null,null,null,null,null,null,null,null,null,null,null,"2026-02-06",null,"MG"]
[null,null,null,null,null,null,null,null,null,null,null,null,null,"2026-02-06",null,"MG"]
[null,null,null,null,null,null,null,null,null,null,null,null,null,"2026-02-06",null,"MG"]
[null,null,null,null,null,null,null,null,null,null,null,null,null,"2026-02-06",null,"MG"]
[null,null,null,null,null,null,null,null,null,null,null,null,null,"2026-02-06",null,"MG"]
[null,null,null,null,null,null,null,null,null,null,null,null,null,"2026-02-06",null,"MG"]
[null,null,null,null,null,null,null,null,null,null,null,null,null,"2026-02-09",null,"MG"]
[null,null,null,null,null,null,null,null,null,null,null,null,null,"2026-02-09",null,"MG"]
[null,null,null,null,null,null,null,null,null,null,null,null,null,"2026-02-09",null,"MG"]
[null,null,null,null,null,null,null,null,null,null,null,null,null,"2026-02-09",null,"MG"]
[null,null,null,null,null,null,null,null,null,null,null,null,null,"2026-02-09",null,"Slo"]
[null,null,null,null,null,null,null,null,null,null,null,null,null,"2026-02-10",null,"Slo"]
[null,null,null,null,null,null,null,null,null,null,null,null,null,"2026-02-10",null,"MG"]
[null,null,null,null,null,null,null,null,null,null,null,null,null,"2026-02-10",null,"Slo"]
[null,null,null,null,null,null,null,null,null,null,null,null,null,"2026-02-10",null,"MG"]
[null,null,null,null,null,null,null,null,null,null,null,null,null,"2026-02-10",null,"MG"]
[null,null,null,null,null,null,null,null,null,null,null,null,null,"2026-02-11",null,"MG"]
[null,null,null,null,null,null,null,null,null,null,null,null,null,"2026-02-11",null,"MG"]
[null,null,null,null,null,null,null,null,null,null,null,null,null,"2026-02-11",null,"MG"]
[null,null,null,null,null,null,null,null,null,null,null,null,null,"2026-02-11",null,"MG"]
[null,null,null,null,null,null,null,null,null,null,null,null,null,"2026-02-11",null,"MG"]
[null,null,null,null,null,null,null,null,null,null,null,null,null,"2026-02-11",null,"MG"]
[null,null,null,null,null,null,null,null,null,null,null,null,null,"2026-02-11",null,"MG"]
[null,null,null,null,null,null,null,null,null,null,null,null,null,"2026-02-11",null,"MG"]
[null,null,null,null,null,null,null,null,null,null,null,null,null,"2026-02-11",null,"MG"]
[null,null,null,null,null,null,null,null,null,null,null,null,null,"2026-02-11",null,"MG"]
[null,null,null,null,null,null,null,null,null,null,null,null,null,"2026-02-11",null,"MG"]
[null,null,null,null,null,null,null,null,null,null,null,null,null,"2026-02-12",null,"MG"]
[null,null,null,null,null,null,null,null,null,null,null,null,null,"2026-02-12",null,"MG"]
[null,null,null,null,null,null,null,null,null,null,null,null,null,"2026-02-12",null,"MG"]
[null,null,null,null,null,null,null,null,null,null,null,null,null,"2026-02-12",null,"MG"]
[null,null,null,null,null,null,null,null,null,null,null,null,null,"2026-02-12",null,"MG"]
[null,null,null,null,null,null,null,null,null,null,null,null,null,"2026-02-12",null,"MG"]
[null,null,null,null,null,null,null,null,null,null,null,null,null,"2026-02-18",null,"Slo"]
[null,null,null,null,null,null,null,null,null,null,null,null,null,"2026-02-18",null,"MG"]
[null,null,null,null,null,null,null,null,null,null,null,null,null,"2026-02-18",null,"MG"]
[null,null,null,null,null,null,null,null,null,null,null,null,null,"2026-02-18",null,"MG"]
[null,null,null,null,null,null,null,null,null,null,null,null,null,"2026-02-18",null,"MG"]
[null,null,null,null,null,null,null,null,null,null,null,null,null,"2026-02-18",null,"MG"]
[null,null,null,null,null,null,null,null,null,null,null,null,null,"2026-02-20",null,"MG"]
[null,null,null,null,null,null,null,null,null,null,null,null,null,"2026-02-20",null,"MG"]
[null,null,null,null,null,null,null,null,null,null,null,null,null,"2026-02-20",null,"MG"]
[null,null,null,null,null,null,null,null,null,null,null,null,null,"2026-02-20",null,"MG"]
[null,null,null,null,null,null,null,null,null,null,null,null,null,"2026-02-23",null,"MG"]
[null,null,null,null,null,null,null,null,null,null,null,null,null,"2026-02-23",null,"Slo"]
[null,null,null,null,null,null,null,null,null,null,null,null,null,"2026-02-23",null,"MG"]
[null,null,null,null,null,null,null,null,null,null,null,null,null,"2026-02-23",null,"MG"]
[null,null,null,null,null,null,null,null,null,null,null,null,null,"2026-02-23",null,"MG"]
[null,null,null,null,null,null,null,null,null,null,null,null,null,"2026-02-23",null,"MG"]
[null,null,null,null,null,null,null,null,null,null,null,null,null,"2026-02-23",null,"MG"]
[null,null,null,null,null,null,null,null,null,null,null,null,null,"2026-02-24",null,"MG"]
[null,null,null,null,null,null,null,null,null,null,null,null,null,"2026-02-24",null,"MG"]
[null,null,null,null,null,null,null,null,null,null,null,null,null,"2026-02-24",null,"MG"]
[null,null,null,null,null,null,null,null,null,null,null,null,null,"2026-02-24",null,"MG"]
[null,null,null,null,null,null,null,null,null,null,null,null,null,"2026-02-24",null,"MG"]
[null,null,null,null,null,null,null,null,null,null,null,null,null,"2026-02-24",null,"MG"]
[null,null,null,null,null,null,null,null,null,null,null,null,null,"2026-02-25",null,"Slo"]
[null,null,null,null,null,null,null,null,null,null,null,null,null,"2026-02-25",null,"Slo"]
[null,null,null,null,null,null,null,null,null,null,null,null,null,"2026-02-25",null,"MG"]
[null,null,null,null,null,null,null,null,null,null,null,null,null,"2026-02-25",null,"MG"]
[null,null,null,null,null,null,null,null,null,null,null,null,null,"2026-02-25",null,"MG"]
[null,null,null,null,null,null,null,null,null,null,null,null,null,"2026-02-26",null,"MG"]
[null,null,null,null,null,null,null,null,null,null,null,null,null,"2026-02-26",null,"MG"]
[null,null,null,null,null,null,null,null,null,null,null,null,null,"2026-02-26",null,"MG"]
[null,null,null,null,null,null,null,null,null,null,null,null,null,"2026-02-27",null,"MG"]
[null,null,null,null,null,null,null,null,null,null,null,null,null,"2026-02-27",null,"MG"]
[null,null,null,null,null,null,null,null,null,null,null,null,null,"2026-02-27",null,"MG"]
[null,null,null,null,null,null,null,null,null,null,null,null,null,"2026-02-27",null,"MG"]
[null,null,null,null,null,null,null,null,null,null,null,null,null,"2026-02-27",null,"MG"]
[null,null,null,null,null,null,null,null,null,null,null,null,null,"2026-02-27",null,"MG"]
[null,null,null,null,null,null,null,null,null,null,null,null,null,"2026-02-27",null,"MG"]
[null,null,null,null,null,null,null,null,null,null,null,null,null,"2026-03-02",null,"Slo"]
[null,null,null,null,null,null,null,null,null,null,null,null,null,"2026-03-02",null,"MG"]
[null,null,null,null,null,null,null,null,null,null,null,null,null,"2026-03-02",null,"MG"]
[null,null,null,null,null,null,null,null,null,null,null,null,null,"2026-03-03",null,"MG"]
[null,null,null,null,null,null,null,null,null,null,null,null,null,"2026-03-03",null,"MG"]
[null,null,null,null,null,null,null,null,null,null,null,null,null,"2026-03-03",null,"MG"]
[null,null,null,null,null,null,null,null,null,null,null,null,null,"2026-03-03",null,"MG"]
[null,null,null,null,null,null,null,null,null,null,null,null,null,"2026-03-03",null,"MG"]
[null,null,null,null,null,null,null,null,null,null,null,null,null,"2026-03-03",null,"MG"]
[null,null,null,null,null,null,null,null,null,null,null,null,null,"2026-03-03",null,"MG"]
[null,null,null,null,null,null,null,null,null,null,null,null,null,"2026-03-03",null,"MG"]
[null,null,null,null,null,null,null,null,null,null,null,null,null,"2026-03-03",null,"MG"]
[null,null,null,null,null,null,null,null,null,null,null,null,null,"2026-03-04",null,"MG"]
[null,null,null,null,null,null,null,null,null,null,null,null,null,"2026-03-04",null,"MG"]
[null,null,null,null,null,null,null,null,null,null,null,null,null,"2026-03-04",null,"MG"]
[null,null,null,null,null,null,null,null,null,null,null,null,null,"2026-03-05",null,"Slo"]
[null,null,null,null,null,null,null,null,null,null,null,null,null,"2026-03-06",null,"MG"]
[null,null,null,null,null,null,null,null,null,null,null,null,null,"2026-03-06",null,"MG"]
[null,null,null,null,null,null,null,null,null,null,null,null,null,"2026-03-06",null,"MG"]
[null,null,null,null,null,null,null,null,null,null,null,null,null,"2026-03-06",null,"MG"]
[null,null,null,null,null,null,null,null,null,null,null,null,null,"2026-03-06",null,"MG"]
[null,null,null,null,null,null,null,null,null,null,null,null,null,"2026-03-06",null,"MG"]
[null,null,null,null,null,null,null,null,null,null,null,null,null,"2026-03-06",null,"MG"]
[null,null,null,null,null,null,null,null,null,null,null,null,null,"2026-03-09",null,"MG"]
[null,null,null,null,null,null,null,null,null,null,null,null,null,"2026-03-09",null,"MG"]
[null,null,null,null,null,null,null,null,null,null,null,null,null,"2026-03-09",null,"MG"]
[null,null,null,null,null,null,null,null,null,null,null,null,null,"2026-03-09",null,"MG"]
[null,null,null,null,null,null,null,null,null,null,null,null,null,"2026-03-09",null,"Slo"]
[null,null,null,null,null,null,null,null,null,null,null,null,null,"2026-03-09",null,"MG"]
[null,null,null,null,null,null,null,null,null,null,null,null,null,"2026-03-09",null,"MG"]
[null,null,null,null,null,null,null,null,null,null,null,null,null,"2026-03-10",null,"MG"]
[null,null,null,null,null,null,null,null,null,null,null,null,null,"2026-03-10",null,"MG"]
[null,null,null,null,null,null,null,null,null,null,null,null,null,"2026-03-10",null,"MG"]
[null,null,null,null,null,null,null,null,null,null,null,null,null,"2026-03-10",null,"MG"]
[null,null,null,null,null,null,null,null,null,null,null,null,null,"2026-03-10",null,"MG"]
[null,null,null,null,null,null,null,null,null,null,null,null,null,"2026-03-10",null,"MG"]
[null,null,null,null,null,null,null,null,null,null,null,null,null,"2026-03-10",null,"MG"]
[null,null,null,null,null,null,null,null,null,null,null,null,null,"2026-03-10",null,"MG"]
[null,null,null,null,null,null,null,null,null,null,null,null,null,"2026-03-10",null,"MG"]
[null,null,null,null,null,null,null,null,null,null,null,null,null,"2026-03-11",null,"MG"]
[null,null,null,null,null,null,null,null,null,null,null,null,null,"2026-03-11",null,"MG"]
[null,null,null,null,null,null,null,null,null,null,null,null,null,"2026-03-11",null,"MG"]
[null,null,null,null,null,null,null,null,null,null,null,null,null,"2026-03-12",null,"MG"]
[null,null,null,null,null,null,null,null,null,null,null,null,null,"2026-03-13",null,"MG"]
[null,null,null,null,null,null,null,null,null,null,null,null,null,"2026-03-13",null,"MG"]
[null,null,null,null,null,null,null,null,null,null,null,null,null,"2026-03-13",null,"MG"]
[null,null,null,null,null,null,null,null,null,null,null,null,null,"2026-03-13",null,"MG"]
[null,null,null,null,null,null,null,null,null,null,null,null,null,"2026-03-13",null,"MG"]
[null,null,null,null,null,null,null,null,null,null,null,null,null,"2026-03-13",null,"MG"]
[null,null,null,null,null,null,null,null,null,null,null,null,null,"2026-03-13",null,"MG"]
[null,null,null,null,null,null,null,null,null,null,null,null,null,"2026-03-13",null,"MG"]
[null,null,null,null,null,null,null,null,null,null,null,null,null,"2026-03-13",null,"MG"]
[null,null,null,null,null,null,null,null,null,null,null,null,null,"2026-03-13",null,"MG"]
[null,null,null,null,null,null,null,null,null,null,null,null,null,"2026-03-13",null,"MG"]
[null,null,null,null,null,null,null,null,null,null,null,null,null,"2026-03-13",null,"MG"]
[null,null,null,null,null,null,null,null,null,null,null,null,null,"2026-03-16",null,"MG"]
[null,null,null,null,null,null,null,null,null,null,null,null,null,"2026-03-16",null,"Slo"]
[null,null,null,null,null,null,null,null,null,null,null,null,null,"2026-03-16",null,"Slo"]
[null,null,null,null,null,null,null,null,null,null,null,null,null,"2026-03-16",null,"Slo"]
[null,null,null,null,null,null,null,null,null,null,null,null,null,"2026-03-16",null,"Slo"]
[null,null,null,null,null,null,null,null,null,null,null,null,null,"2026-03-16",null,"MG"]
[null,null,null,null,null,null,null,null,null,null,null,null,null,"2026-03-16",null,"MG"]
[null,null,null,null,null,null,null,null,null,null,null,null,null,"2026-03-16",null,"MG"]
[null,null,null,null,null,null,null,null,null,null,null,null,null,"2026-03-16",null,"MG"]
[null,null,null,null,null,null,null,null,null,null,null,null,null,"2026-03-17",null,"MG"]
[null,null,null,null,null,null,null,null,null,null,null,null,null,"2026-03-17",null,"MG"]
[null,null,null,null,null,null,null,null,null,null,null,null,null,"2026-03-17",null,"MG"]
[null,null,null,null,null,null,null,null,null,null,null,null,null,"2026-03-17",null,"MG"]
[null,null,null,null,null,null,null,null,null,null,null,null,null,"2026-03-17",null,"MG"]
[null,null,null,null,null,null,null,null,null,null,null,null,null,"2026-03-17",null,"MG"]
[null,null,null,null,null,null,null,null,null,null,null,null,null,"2026-03-17",null,"MG"]
[null,null,null,null,null,null,null,null,null,null,null,null,null,"2026-03-17",null,"MG"]
[null,null,null,null,null,null,null,null,null,null,null,null,null,"2026-03-17",null,"MG"]
[null,null,null,null,null,null,null,null,null,null,null,null,null,"2026-03-17",null,"MG"]
[null,null,null,null,null,null,null,null,null,null,null,null,null,"2026-03-17",null,"MG"]
[null,null,null,null,null,null,null,null,null,null,null,null,null,"2026-03-17",null,"MG"]
[null,null,null,null,null,null,null,null,null,null,null,null,null,"2026-03-17",null,"MG"]
[null,null,null,null,null,null,null,null,null,null,null,null,null,"2026-03-17",null,"MG"]
[null,null,null,null,null,null,null,null,null,null,null,null,null,"2026-03-18",null,"MG"]
[null,null,null,null,null,null,null,null,null,null,null,null,null,"2026-03-18",null,"MG"]
[null,null,null,null,null,null,null,null,null,null,null,null,null,"2026-03-18",null,"MG"]
[null,null,null,null,null,null,null,null,null,null,null,null,null,"2026-03-18",null,"MG"]
[null,null,null,null,null,null,null,null,null,null,null,null,null,"2026-03-18",null,"MG"]
[null,null,null,null,null,null,null,null,null,null,null,null,null,"2026-03-18",null,"MG"]
[null,null,null,null,null,null,null,null,null,null,null,null,null,"2026-03-18",null,"MG"]
[null,null,null,null,null,null,null,null,null,null,null,null,null,"2026-03-18",null,"MG"]
[null,null,null,null,null,null,null,null,null,null,null,null,null,"2026-03-18",null,"MG"]
[null,null,null,null,null,null,null,null,null,null,null,null,null,"2026-03-18",null,"MG"]
[null,null,null,null,null,null,null,null,null,null,null,null,null,"2026-03-18",null,"MG"]
[null,null,null,null,null,null,null,null,null,null,null,null,null,"2026-03-18",null,"MG"]
[null,null,null,null,null,null,null,null,null,null,null,null,null,"2026-03-18",null,"MG"]
[null,null,null,null,null,null,null,null,null,null,null,null,null,"2026-03-18",null,"MG"]
[null,null,null,null,null,null,null,null,null,null,null,null,null,"2026-03-18",null,"MG"]
[null,null,null,null,null,null,null,null,null,null,null,null,null,"2026-03-18",null,"MG"]
[null,null,null,null,null,null,null,null,null,null,null,null,null,"2026-03-19",null,"MG"]
[null,null,null,null,null,null,null,null,null,null,null,null,null,"2026-03-19",null,"MG"]
[null,null,null,null,null,null,null,null,null,null,null,null,null,"2026-03-20",null,"MG"]
[null,null,null,null,null,null,null,null,null,null,null,null,null,"2026-03-20",null,"MG"]
[null,null,null,null,null,null,null,null,null,null,null,null,null,"2026-03-20",null,"MG"]
[null,null,null,null,null,null,null,null,null,null,null,null,null,"2026-03-23",null,"Slo"]
[null,null,null,null,null,null,null,null,null,null,null,null,null,"2026-03-23",null,"Slo"]
[null,null,null,null,null,null,null,null,null,null,null,null,null,"2026-03-23",null,"Slo"]
[null,null,null,null,null,null,null,null,null,null,null,null,null,"2026-03-23",null,"MG"]
[null,null,null,null,null,null,null,null,null,null,null,null,null,"2026-03-23",null,"MG"]
[null,null,null,null,null,null,null,null,null,null,null,null,null,"2026-03-23",null,"MG"]
[null,null,null,null,null,null,null,null,null,null,null,null,null,"2026-03-23",null,"MG"]
[null,null,null,null,null,null,null,null,null,null,null,null,null,"2026-03-23",null,"MG"]
[null,null,null,null,null,null,null,null,null,null,null,null,null,"2026-03-23",null,"MG"]
[null,null,null,null,null,null,null,null,null,null,null,null,null,"2026-03-23",null,"MG"]
[null,null,null,null,null,null,null,null,null,null,null,null,null,"2026-03-23",null,"MG"]
[null,null,null,null,null,null,null,null,null,null,null,null,null,"2026-03-23",null,"MG"]
[null,null,null,null,null,null,null,null,null,null,null,null,null,"2026-03-24",null,"MG"]
[null,null,null,null,null,null,null,null,null,null,null,null,null,"2026-03-24",null,"MG"]
[null,null,null,null,null,null,null,null,null,null,null,null,null,"2026-03-25",null,"MG"]
[null,null,null,null,null,null,null,null,null,null,null,null,null,"2026-03-25",null,"MG"]
[null,null,null,null,null,null,null,null,null,null,null,null,null,"2026-03-25",null,"MG"]
[null,null,null,null,null,null,null,null,null,null,null,null,null,"2026-03-25",null,"MG"]
[null,null,null,null,null,null,null,null,null,null,null,null,null,"2026-03-25",null,"MG"]
[null,null,null,null,null,null,null,null,null,null,null,null,null,"2026-03-25",null,"MG"]
[null,null,null,null,null,null,null,null,null,null,null,null,null,"2026-03-25",null,"MG"]
[null,null,null,null,null,null,null,null,null,null,null,null,null,"2026-03-25",null,"MG"]
[null,null,null,null,null,null,null,null,null,null,null,null,null,"2026-03-25",null,"MG"]
[null,null,null,null,null,null,null,null,null,null,null,null,null,"2026-03-26",null,"MG"]
[null,null,null,null,null,null,null,null,null,null,null,null,null,"2026-03-26",null,"MG"]
[null,null,null,null,null,null,null,null,null,null,null,null,null,"2026-03-26",null,"MG"]
[null,null,null,null,null,null,null,null,null,null,null,null,null,"2026-03-26",null,"MG"]
[null,null,null,null,null,null,null,null,null,null,null,null,null,"2026-03-26",null,"MG"]
[null,null,null,null,null,null,null,null,null,null,null,null,null,"2026-03-26",null,"MG"]
[null,null,null,null,null,null,null,null,null,null,null,null,null,"2026-03-26",null,"MG"]
[null,null,null,null,null,null,null,null,null,null,null,null,null,"2026-03-26",null,"MG"]
[null,null,null,null,null,null,null,null,null,null,null,null,null,"2026-03-26",null,"MG"]
[null,null,null,null,null,null,null,null,null,null,null,null,null,"2026-03-26",null,"MG"]

{"sheet":"Rg_Eingang_Tag","index":1,"n_rows":51,"n_cols":60,"rows_kept":51,"cut":false,"hidden":false,"merged":[[2,0,2,1],[2,5,2,6],[2,10,2,11],[2,15,2,16],[2,20,2,21],[2,55,2,56],[1,5,1,6],[1,15,1,16],[1,30,1,31],[1,45,1,46],[2,25,2,26],[2,30,2,31],[2,35,2,36],[2,40,2,41],[2,45,2,46],[2,50,2,51]]}
[]
[null,null,null,null,null,2026,null,null,null,null,null,null,null,null,null,{"$f":"+F2","v":2026},null,null,null,null,null,null,null,null,null,null,null,null,null,null,{"$f":"+F2","v":2026},null,null,null,null,null,null,null,null,null,null,null,null,null,null,{"$f":"+F2","v":2026}]
["Januar",null,"MG","Pau","Slo","Februar",null,"MG","Pau","Slo","März",null,"MG","Pau","Slo","April",null,"MG","Pau","Slo","Mai",null,"MG","Pau","Slo","Juni",null,"MG","Pau","Slo","Juli",null,"MG","Pau","Slo","August",null,"MG","Pau","Slo","September",null,"MG","Pau","Slo","Oktober",null,"MG","Pau","Slo","November",null,"MG","Pau","Slo","Dezember",null,"MG","Pau","Slo"]
[{"$f":"TEXT(DATE($F$2,1+INT((COLUMN()-1)/3),1)+ROW(A1)-1,\"TTT\")","v":"Do"},{"$f":"TEXT(DATE($F$2,1+INT((COLUMN()-1)/3),1)+ROW(A1)-1,\"TT.MM.\")","v":"01.01."},null,null,null,{"$f":"TEXT(DATE($F$2,2,1)+ROW(A1)-1,\"TTT\")","v":"So"},{"$f":"TEXT(DATE($F$2,2,1)+ROW(A1)-1,\"TT.MM.\")","v":"01.02."},null,null,null,{"$f":"TEXT(DATE($F$2,3,1)+ROW(A1)-1,\"TTT\")","v":"So"},{"$f":"TEXT(DATE($F$2,3,1)+ROW(A1)-1,\"TT.MM.\")","v":"01.03."},null,null,null,{"$f":"TEXT(DATE($F$2,4,1)+ROW(A1)-1,\"TTT\")","v":"Mi"},{"$f":"TEXT(DATE($F$2,4,1)+ROW(A1)-1,\"TT.MM.\")","v":"01.04."},null,null,null,{"$f":"TEXT(DATE($F$2,5,1)+ROW(A1)-1,\"TTT\")","v":"Fr"},{"$f":"TEXT(DATE($F$2,5,1)+ROW(A1)-1,\"TT.MM.\")","v":"01.05."},null,null,null,{"$f":"TEXT(DATE($F$2,6,1)+ROW(A1)-1,\"TTT\")","v":"Mo"},{"$f":"TEXT(DATE($F$2,6,1)+ROW(A1)-1,\"TT.MM.\")","v":"01.06."},null,null,null,{"$f":"TEXT(DATE($F$2,7,1)+ROW(A1)-1,\"TTT\")","v":"Mi"},{"$f":"TEXT(DATE($F$2,7,1)+ROW(A1)-1,\"TT.MM.\")","v":"01.07."},null,null,null,{"$f":"TEXT(DATE($F$2,8,1)+ROW(A1)-1,\"TTT\")","v":"Sa"},{"$f":"TEXT(DATE($F$2,8,1)+ROW(A1)-1,\"TT.MM.\")","v":"01.08."},null,null,null,{"$f":"TEXT(DATE($F$2,9,1)+ROW(A1)-1,\"TTT\")","v":"Di"},{"$f":"TEXT(DATE($F$2,9,1)+ROW(A1)-1,\"TT.MM.\")","v":"01.09."},null,null,null,{"$f":"TEXT(DATE($F$2,10,1)+ROW(A1)-1,\"TTT\")","v":"Do"},{"$f":"TEXT(DATE($F$2,10,1)+ROW(A1)-1,\"TT.MM.\")","v":"01.10."},null,null,null,{"$f":"TEXT(DATE($F$2,11,1)+ROW(A1)-1,\"TTT\")","v":"So"},{"$f":"TEXT(DATE($F$2,11,1)+ROW(A1)-1,\"TT.MM.\")","v":"01.11."},null,null,null,{"$f":"TEXT(DATE($F$2,12,1)+ROW(A1)-1,\"TTT\")","v":"Di"},{"$f":"TEXT(DATE($F$2,12,1)+ROW(A1)-1,\"TT.MM.\")","v":"01.12."}]
[{"$f":"TEXT(DATE($F$2,1+INT((COLUMN()-1)/3),1)+ROW(A2)-1,\"TTT\")","v":"Fr"},{"$f":"TEXT(DATE($F$2,1+INT((COLUMN()-1)/3),1)+ROW(A2)-1,\"TT.MM.\")","v":"02.01."},null,null,null,{"$f":"TEXT(DATE($F$2,2,1)+ROW(A2)-1,\"TTT\")","v":"Mo"},{"$f":"TEXT(DATE($F$2,2,1)+ROW(A2)-1,\"TT.MM.\")","v":"02.02."},6,null,null,{"$f":"TEXT(DATE($F$2,3,1)+ROW(A2)-1,\"TTT\")","v":"Mo"},{"$f":"TEXT(DATE($F$2,3,1)+ROW(A2)-1,\"TT.MM.\")","v":"02.03."},2,null,1,{"$f":"TEXT(DATE($F$2,4,1)+ROW(A2)-1,\"TTT\")","v":"Do"},{"$f":"TEXT(DATE($F$2,4,1)+ROW(A2)-1,\"TT.MM.\")","v":"02.04."},null,null,null,{"$f":"TEXT(DATE($F$2,5,1)+ROW(A2)-1,\"TTT\")","v":"Sa"},{"$f":"TEXT(DATE($F$2,5,1)+ROW(A2)-1,\"TT.MM.\")","v":"02.05."},null,null,null,{"$f":"TEXT(DATE($F$2,6,1)+ROW(A2)-1,\"TTT\")","v":"Di"},{"$f":"TEXT(DATE($F$2,6,1)+ROW(A2)-1,\"TT.MM.\")","v":"02.06."},null,null,null,{"$f":"TEXT(DATE($F$2,7,1)+ROW(A2)-1,\"TTT\")","v":"Do"},{"$f":"TEXT(DATE($F$2,7,1)+ROW(A2)-1,\"TT.MM.\")","v":"02.07."},null,null,null,{"$f":"TEXT(DATE($F$2,8,1)+ROW(A2)-1,\"TTT\")","v":"So"},{"$f":"TEXT(DATE($F$2,8,1)+ROW(A2)-1,\"TT.MM.\")","v":"02.08."},null,null,null,{"$f":"TEXT(DATE($F$2,9,1)+ROW(A2)-1,\"TTT\")","v":"Mi"},{"$f":"TEXT(DATE($F$2,9,1)+ROW(A2)-1,\"TT.MM.\")","v":"02.09."},null,null,null,{"$f":"TEXT(DATE($F$2,10,1)+ROW(A2)-1,\"TTT\")","v":"Fr"},{"$f":"TEXT(DATE($F$2,10,1)+ROW(A2)-1,\"TT.MM.\")","v":"02.10."},null,null,null,{"$f":"TEXT(DATE($F$2,11,1)+ROW(A2)-1,\"TTT\")","v":"Mo"},{"$f":"TEXT(DATE($F$2,11,1)+ROW(A2)-1,\"TT.MM.\")","v":"02.11."},null,null,null,{"$f":"TEXT(DATE($F$2,12,1)+ROW(A2)-1,\"TTT\")","v":"Mi"},{"$f":"TEXT(DATE($F$2,12,1)+ROW(A2)-1,\"TT.MM.\")","v":"02.12."}]
[{"$f":"TEXT(DATE($F$2,1+INT((COLUMN()-1)/3),1)+ROW(A3)-1,\"TTT\")","v":"Sa"},{"$f":"TEXT(DATE($F$2,1+INT((COLUMN()-1)/3),1)+ROW(A3)-1,\"TT.MM.\")","v":"03.01."},null,null,null,{"$f":"TEXT(DATE($F$2,2,1)+ROW(A3)-1,\"TTT\")","v":"Di"},{"$f":"TEXT(DATE($F$2,2,1)+ROW(A3)-1,\"TT.MM.\")","v":"03.02."},5,null,1,{"$f":"TEXT(DATE($F$2,3,1)+ROW(A3)-1,\"TTT\")","v":"Di"},{"$f":"TEXT(DATE($F$2,3,1)+ROW(A3)-1,\"TT.MM.\")","v":"03.03."},9,null,null,{"$f":"TEXT(DATE($F$2,4,1)+ROW(A3)-1,\"TTT\")","v":"Fr"},{"$f":"TEXT(DATE($F$2,4,1)+ROW(A3)-1,\"TT.MM.\")","v":"03.04."},null,null,null,{"$f":"TEXT(DATE($F$2,5,1)+ROW(A3)-1,\"TTT\")","v":"So"},{"$f":"TEXT(DATE($F$2,5,1)+ROW(A3)-1,\"TT.MM.\")","v":"03.05."},null,null,null,{"$f":"TEXT(DATE($F$2,6,1)+ROW(A3)-1,\"TTT\")","v":"Mi"},{"$f":"TEXT(DATE($F$2,6,1)+ROW(A3)-1,\"TT.MM.\")","v":"03.06."},null,null,null,{"$f":"TEXT(DATE($F$2,7,1)+ROW(A3)-1,\"TTT\")","v":"Fr"},{"$f":"TEXT(DATE($F$2,7,1)+ROW(A3)-1,\"TT.MM.\")","v":"03.07."},null,null,null,{"$f":"TEXT(DATE($F$2,8,1)+ROW(A3)-1,\"TTT\")","v":"Mo"},{"$f":"TEXT(DATE($F$2,8,1)+ROW(A3)-1,\"TT.MM.\")","v":"03.08."},null,null,null,{"$f":"TEXT(DATE($F$2,9,1)+ROW(A3)-1,\"TTT\")","v":"Do"},{"$f":"TEXT(DATE($F$2,9,1)+ROW(A3)-1,\"TT.MM.\")","v":"03.09."},null,null,null,{"$f":"TEXT(DATE($F$2,10,1)+ROW(A3)-1,\"TTT\")","v":"Sa"},{"$f":"TEXT(DATE($F$2,10,1)+ROW(A3)-1,\"TT.MM.\")","v":"03.10."},null,null,null,{"$f":"TEXT(DATE($F$2,11,1)+ROW(A3)-1,\"TTT\")","v":"Di"},{"$f":"TEXT(DATE($F$2,11,1)+ROW(A3)-1,\"TT.MM.\")","v":"03.11."},null,null,null,{"$f":"TEXT(DATE($F$2,12,1)+ROW(A3)-1,\"TTT\")","v":"Do"},{"$f":"TEXT(DATE($F$2,12,1)+ROW(A3)-1,\"TT.MM.\")","v":"03.12."}]
["So","04.01.",null,null,null,"Mi","04.02.",9,null,null,"Mi","04.03.",3,null,null,"Sa","04.04.",null,null,null,"Mo","04.05.",null,null,null,"Do","04.06.",null,null,null,"Sa","04.07.",null,null,null,"Di","04.08.",null,null,null,"Fr","04.09.",null,null,null,"So","04.10.",null,null,null,"Mi","04.11.",null,null,null,"Fr","04.12."]
["Mo","05.01.",3,null,null,"Do","05.02.",2,null,null,"Do","05.03.",null,null,1,"So","05.04.",null,null,null,"Di","05.05.",null,null,null,"Fr","05.06.",null,null,null,"So","05.07.",null,null,null,"Mi","05.08.",null,null,null,"Sa","05.09.",null,null,null,"Mo","05.10.",null,null,null,"Do","05.11.",null,null,null,"Sa","05.12."]
["Di","06.01.",16,null,2,"Fr","06.02.",7,null,null,"Fr","06.03.",7,null,null,"Mo","06.04.",null,null,null,"Mi","06.05.",null,null,null,"Sa","06.06.",null,null,null,"Mo","06.07.",null,null,null,"Do","06.08.",null,null,null,"So","06.09.",null,null,null,"Di","06.10.",null,null,null,"Fr","06.11.",null,null,null,"So","06.12."]
["Mi","07.01.",15,null,null,"Sa","07.02.",null,null,null,"Sa","07.03.",null,null,null,"Di","07.04.",null,null,null,"Do","07.05.",null,null,null,"So","07.06.",null,null,null,"Di","07.07.",null,null,null,"Fr","07.08.",null,null,null,"Mo","07.09.",null,null,null,"Mi","07.10.",null,null,null,"Sa","07.11.",null,null,null,"Mo","07.12."]
["Do","08.01.",6,null,null,"So","08.02.",null,null,null,"So","08.03.",null,null,null,"Mi","08.04.",null,null,null,"Fr","08.05.",null,null,null,"Mo","08.06.",null,null,null,"Mi","08.07.",null,null,null,"Sa","08.08.",null,null,null,"Di","08.09.",null,null,null,"Do","08.10.",null,null,null,"So","08.11.",null,null,null,"Di","08.12."]
["Fr","09.01.",null,null,null,"Mo","09.02.",4,null,1,"Mo","09.03.",6,null,1,"Do","09.04.",null,null,null,"Sa","09.05.",null,null,null,"Di","09.06.",null,null,null,"Do","09.07.",null,null,null,"So","09.08.",null,null,null,"Mi","09.09.",null,null,null,"Fr","09.10.",null,null,null,"Mo","09.11.",null,null,null,"Mi","09.12."]
["Sa","10.01.",null,null,null,"Di","10.02.",3,null,2,"Di","10.03.",9,null,null,"Fr","10.04.",null,null,null,"So","10.05.",null,null,null,"Mi","10.06.",null,null,null,"Fr","10.07.",null,null,null,"Mo","10.08.",null,null,null,"Do","10.09.",null,null,null,"Sa","10.10.",null,null,null,"Di","10.11.",null,null,null,"Do","10.12."]
["So","11.01.",null,null,null,"Mi","11.02.",11,null,null,"Mi","11.03.",3,null,null,"Sa","11.04.",null,null,null,"Mo","11.05.",null,null,null,"Do","11.06.",null,null,null,"Sa","11.07.",null,null,null,"Di","11.08.",null,null,null,"Fr","11.09.",null,null,null,"So","11.10.",null,null,null,"Mi","11.11.",null,null,null,"Fr","11.12."]
["Mo","12.01.",5,null,null,"Do","12.02.",6,null,null,"Do","12.03.",1,null,null,"So","12.04.",null,null,null,"Di","12.05.",null,null,null,"Fr","12.06.",null,null,null,"So","12.07.",null,null,null,"Mi","12.08.",null,null,null,"Sa","12.09.",null,null,null,"Mo","12.10.",null,null,null,"Do","12.11.",null,null,null,"Sa","12.12."]
["Di","13.01.",17,null,null,"Fr","13.02.",null,null,null,"Fr","13.03.",12,null,null,"Mo","13.04.",null,null,null,"Mi","13.05.",null,null,null,"Sa","13.06.",null,null,null,"Mo","13.07.",null,null,null,"Do","13.08.",null,null,null,"So","13.09.",null,null,null,"Di","13.10.",null,null,null,"Fr","13.11.",null,null,null,"So","13.12."]
["Mi","14.01.",2,null,null,"Sa","14.02.",null,null,null,"Sa","14.03.",null,null,null,"Di","14.04.",null,null,null,"Do","14.05.",null,null,null,"So","14.06.",null,null,null,"Di","14.07.",null,null,null,"Fr","14.08.",null,null,null,"Mo","14.09.",null,null,null,"Mi","14.10.",null,null,null,"Sa","14.11.",null,null,null,"Mo","14.12."]
["Do","15.01.",null,null,null,"So","15.02.",null,null,null,"So","15.03.",null,null,null,"Mi","15.04.",null,null,null,"Fr","15.05.",null,null,null,"Mo","15.06.",null,null,null,"Mi","15.07.",null,null,null,"Sa","15.08.",null,null,null,"Di","15.09.",null,null,null,"Do","15.10.",null,null,null,"So","15.11.",null,null,null,"Di","15.12."]
["Fr","16.01.",7,null,null,"Mo","16.02.",null,null,null,"Mo","16.03.",5,null,4,"Do","16.04.",null,null,null,"Sa","16.05.",null,null,null,"Di","16.06.",null,null,null,"Do","16.07.",null,null,null,"So","16.08.",null,null,null,"Mi","16.09.",null,null,null,"Fr","16.10.",null,null,null,"Mo","16.11.",null,null,null,"Mi","16.12."]
["Sa","17.01.",null,null,null,"Di","17.02.",null,null,null,"Di","17.03.",14,null,null,"Fr","17.04.",null,null,null,"So","17.05.",null,null,null,"Mi","17.06.",null,null,null,"Fr","17.07.",null,null,null,"Mo","17.08.",null,null,null,"Do","17.09.",null,null,null,"Sa","17.10.",null,null,null,"Di","17.11.",null,null,null,"Do","17.12."]
["So","18.01.",null,null,null,"Mi","18.02.",5,null,1,"Mi","18.03.",16,null,null,"Sa","18.04.",null,null,null,"Mo","18.05.",null,null,null,"Do","18.06.",null,null,null,"Sa","18.07.",null,null,null,"Di","18.08.",null,null,null,"Fr","18.09.",null,null,null,"So","18.10.",null,null,null,"Mi","18.11.",null,null,null,"Fr","18.12."]
["Mo","19.01.",4,null,null,"Do","19.02.",null,null,null,"Do","19.03.",2,null,null,"So","19.04.",null,null,null,"Di","19.05.",null,null,null,"Fr","19.06.",null,null,null,"So","19.07.",null,null,null,"Mi","19.08.",null,null,null,"Sa","19.09.",null,null,null,"Mo","19.10.",null,null,null,"Do","19.11.",null,null,null,"Sa","19.12."]
["Di","20.01.",8,null,null,"Fr","20.02.",4,null,null,"Fr","20.03.",3,null,null,"Mo","20.04.",null,null,null,"Mi","20.05.",null,null,null,"Sa","20.06.",null,null,null,"Mo","20.07.",null,null,null,"Do","20.08.",null,null,null,"So","20.09.",null,null,null,"Di","20.10.",null,null,null,"Fr","20.11.",null,null,null,"So","20.12."]
["Mi","21.01.",8,null,5,"Sa","21.02.",null,null,null,"Sa","21.03.",null,null,null,"Di","21.04.",null,null,null,"Do","21.05.",null,null,null,"So","21.06.",null,null,null,"Di","21.07.",null,null,null,"Fr","21.08.",null,null,null,"Mo","21.09.",null,null,null,"Mi","21.10.",null,null,null,"Sa","21.11.",null,null,null,"Mo","21.12."]
["Do","22.01.",5,null,null,"So","22.02.",null,null,null,"So","22.03.",null,null,null,"Mi","22.04.",null,null,null,"Fr","22.05.",null,null,null,"Mo","22.06.",null,null,null,"Mi","22.07.",null,null,null,"Sa","22.08.",null,null,null,"Di","22.09.",null,null,null,"Do","22.10.",null,null,null,"So","22.11.",null,null,null,"Di","22.12."]
["Fr","23.01.",12,null,null,"Mo","23.02.",6,null,1,"Mo","23.03.",9,null,3,"Do","23.04.",null,null,null,"Sa","23.05.",null,null,null,"Di","23.06.",null,null,null,"Do","23.07.",null,null,null,"So","23.08.",null,null,null,"Mi","23.09.",null,null,null,"Fr","23.10.",null,null,null,"Mo","23.11.",null,null,null,"Mi","23.12."]
["Sa","24.01.",null,null,null,"Di","24.02.",6,null,null,"Di","24.03.",2,null,null,"Fr","24.04.",null,null,null,"So","24.05.",null,null,null,"Mi","24.06.",null,null,null,"Fr","24.07.",null,null,null,"Mo","24.08.",null,null,null,"Do","24.09.",null,null,null,"Sa","24.10.",null,null,null,"Di","24.11.",null,null,null,"Do","24.12."]
["So","25.01.",null,null,null,"Mi","25.02.",3,null,2,"Mi","25.03.",9,null,null,"Sa","25.04.",null,null,null,"Mo","25.05.",null,null,null,"Do","25.06.",null,null,null,"Sa","25.07.",null,null,null,"Di","25.08.",null,null,null,"Fr","25.09.",null,null,null,"So","25.10.",null,null,null,"Mi","25.11.",null,null,null,"Fr","25.12."]
["Mo","26.01.",3,null,null,"Do","26.02.",3,null,null,"Do",{"$f":"DATE($F$2,3,1)+ROW(A26)-1","v":"2026-03-26"},null,null,null,"So","26.04.",null,null,null,"Di","26.05.",null,null,null,"Fr","26.06.",null,null,null,"So","26.07.",null,null,null,"Mi","26.08.",null,null,null,"Sa","26.09.",null,null,null,"Mo","26.10.",null,null,null,"Do","26.11.",null,null,null,"Sa","26.12."]
["Di","27.01.",6,null,null,"Fr","27.02.",7,null,null,"Fr","27.03.",null,null,null,"Mo","27.04.",null,null,null,"Mi","27.05.",null,null,null,"Sa","27.06.",null,null,null,"Mo","27.07.",null,null,null,"Do","27.08.",null,null,null,"So","27.09.",null,null,null,"Di","27.10.",null,null,null,"Fr","27.11.",null,null,null,"So","27.12."]
["Mi","28.01.",9,null,1,"Sa","28.02.",null,null,null,"Sa","28.03.",null,null,null,"Di","28.04.",null,null,null,"Do","28.05.",null,null,null,"So","28.06.",null,null,null,"Di","28.07.",null,null,null,"Fr","28.08.",null,null,null,"Mo","28.09.",null,null,null,"Mi","28.10.",null,null,null,"Sa","28.11.",null,null,null,"Mo","28.12."]
["Do","29.01.",1,null,1,null,null,null,null,null,"So","29.03.",null,null,null,"Mi","29.04.",null,null,null,"Fr","29.05.",null,null,null,"Mo","29.06.",null,null,null,"Mi","29.07.",null,null,null,"Sa","29.08.",null,null,null,"Di","29.09.",null,null,null,"Do","29.10.",null,null,null,"So","29.11.",null,null,null,"Di","29.12."]
["Fr","30.01.",1,null,2,null,null,null,null,null,"Mo","30.03.",null,null,null,"Do","30.04.",null,null,null,"Sa","30.05.",null,null,null,"Di","30.06.",null,null,null,"Do","30.07.",null,null,null,"So","30.08.",null,null,null,"Mi","30.09.",null,null,null,"Fr","30.10.",null,null,null,"Mo","30.11.",null,null,null,"Mi","30.12."]
["Sa","31.01.",null,null,null,null,null,null,null,null,"Di","31.03.",null,null,null,null,null,null,null,null,"So","31.05.",null,null,null,null,null,null,null,null,"Fr","31.07.",null,null,null,"Mo","31.08.",null,null,null,null,null,null,null,null,"Sa","31.10.",null,null,null,null,null,null,null,null,"Do","31.12."]
[null,null,{"$f":"SUM(C4:C34)","v":128},{"$f":"SUM(D4:D34)","v":0},11,null,null,{"$f":"SUM(H4:H34)","v":87},0,8,null,null,{"$f":"SUM(M4:M34)","v":112},0,10,null,null,{"$f":"IF(SUM(R8:R34)=0,\"\",SUM(R8:R34))","v":""},"","",null,null,"","","",null,null,"","","",null,null,"","","",null,null,"","","",null,null,"","","",null,null,"","","",null,null,"","","",null,null,"","",""]
[]
["Gesamt pro Monat /Jahr:"]
[null,null,"MG","Pau","Slo",null,null,null,"starte zuerst mein Makro und beachte dann die Hinweise für die unterschiedlichen Farben",null,null,null,null,null,null,null,null,null,null,null,null,null,null,null,null,null,null,null,null,null,null,null,null,"B5,G5, L5, Q5, V5, AA5, AF5,",null,null,null,null,"Ak5, AP5, AU5, AZ5 und BE5 sein,"]
["Januar",null,{"$f":"+C35","v":128},{"$f":"+D35","v":0},{"$f":"+E35","v":11},{"$f":"SUM(C39:E39)","v":139},null,null,null,"=","ALLE Zahlen für Ma,Slk,Pak ergeben als Summe = 333"]
["Februar",null,{"$f":"+H35","v":87},{"$f":"+I35","v":0},{"$f":"+J35","v":8},{"$f":"SUM(C40:E40)","v":95},null,null,null,"=","deine Formeln in Zeile 35 beginnen alle erst ab Zeile 8 = somit fehlen hier alle Werte aus den Zeilen 5 bis 7"]
["März",null,{"$f":"+M35","v":112},{"$f":"+N35","v":0},{"$f":"+O35","v":10},122,null,null,null,"=","HIER dürfen keine Werte stehen, weil ja Februar nur max 29 Tage hat;und wenn du genau hinguckst, werden ja genau diese Werte in den Spalten M+N für Monat März wiederholt"]
["April",null,null,null,null,0]
["Mai",null,null,null,null,0,null,null,null,null,null,"=ODER(A4=\"Sa\";A4=\"So\")"]
["Juni",null,null,null,null,0]
["Juli",null,null,null,null,0]
["August",null,null,null,null,0]
["September",null,null,null,null,0]
["Oktober",null,null,null,null,0]
["November",null,null,null,null,0]
["Dezember",null,null,null,null,0]
[null,"Gesamt:",{"$f":"SUM(C39:C50)","v":327},{"$f":"SUM(D39:D50)","v":0},29,356]